fUST/lending_fUST_20241211
["ID","MTS","AMOUNT","RATE_DAILY","PERIOD"]
[344907566,1733867247019,-226.16,0.000299,31]
[344907567,1733867247046,-226.16,0.000299,31]
[344907568,1733867247071,-226.16,0.000299,31]
[344907569,1733867247098,-226.16,0.000299,31]
[344907570,1733867247128,-226.16,0.000299,31]
[344907571,1733867247154,-226.16,0.000299,31]
[344907572,1733867247179,-226.16,0.000299,31]
[344907573,1733867247204,-226.16,0.000299,31]
[344907574,1733867247230,-226.16,0.000299,31]
[344907575,1733867247255,-226.16,0.000299,31]
[344907576,1733867247279,-226.16,0.000299,31]
[344907577,1733867247304,-226.16,0.000299,31]
[344907578,1733867247326,-1562.14,0.000299,7]
[344907579,1733867247348,-500.0,0.000299,7]
[344907580,1733867247374,-168.523106,0.00029912,2]
[344907581,1733867247397,-397.59353876,0.00029929,7]
[344907582,1733867247419,-500.0,0.00029929,7]
[344907583,1733867247441,-506.84398934,0.00029929,7]
[344907584,1733867247462,-504.95064921,0.00029929,7]
[344907585,1733867247485,-500.0,0.00029929,7]
[344907586,1733867247507,-500.0,0.00029929,7]
[344907587,1733867247528,-104.2567817,0.00029929,7]
[344907634,1733867432647,-1148.97452242,0.00027874,2]
[344907636,1733867432657,-168.523106,0.00027974,2]
[344907638,1733867432667,-300.0,0.00029862,2]
[344907640,1733867432676,-300.0,0.00029862,2]
[344907642,1733867432685,-500.0,0.00029863,7]
[344907644,1733867432695,-111.98834117,0.00029863,7]
[344907647,1733867432741,-388.01165883,0.00029863,7]
[344907649,1733867432750,-500.0,0.00029863,7]
[344907651,1733867432760,-500.0,0.00029863,7]
[344907653,1733867432769,-500.0,0.00029863,7]
[344907655,1733867432779,-500.0,0.00029863,7]
[344907657,1733867432789,-500.0,0.00029863,7]
[344907659,1733867432798,-500.0,0.00029863,7]
[344907661,1733867432807,-501.69193772,0.00029863,7]
[344907663,1733867432817,-500.0,0.00029863,7]
[344907665,1733867432827,-500.0,0.00029863,7]
[344907667,1733867432837,-503.45166271,0.00029863,7]
[344907669,1733867432846,-500.0,0.00029863,7]
[344907671,1733867432856,-500.0,0.00029863,7]
[344907673,1733867432866,-500.0,0.00029863,7]
[344907675,1733867432876,-500.0,0.00029863,7]
[344907677,1733867432886,-500.0,0.00029863,7]
[344907679,1733867432896,-500.0,0.00029863,7]
[344907682,1733867432905,-500.0,0.00029863,7]
[344907684,1733867432914,-500.0,0.00029863,7]
[344907687,1733867432923,-573.77386723,0.00029863,7]
[344907689,1733867432932,-244.27,0.00029863,7]
[344907693,1733867432942,-500.0,0.00029863,7]
[344907696,1733867432952,-500.0,0.00029863,7]
[344907699,1733867432962,-500.0,0.00029863,7]
[344907702,1733867432972,-500.0,0.00029875,7]
[344907704,1733867432982,-305.03096696,0.00029899,7]
[344907707,1733867432991,-212.0390805,0.000299,30]
[344907711,1733867433002,-153.0,0.000299,30]
[344907713,1733867433020,-610.09039344,0.000299,2]
[344907717,1733867433036,-153.0,0.000299,30]
[344907720,1733867433047,-610.09039344,0.00029904,2]
[344907722,1733867433057,-610.09039344,0.00029909,2]
[344907727,1733867433067,-610.09039344,0.00029913,2]
[344907729,1733867433077,-610.09039344,0.00029917,2]
[344907732,1733867433087,-610.09039344,0.00029921,2]
[344907735,1733867433097,-610.09039344,0.00029926,2]
[344907739,1733867433111,-395.7432183,0.00029929,7]
[344907741,1733867433121,-5332.25334756,0.0002993,2]
[344907743,1733867433131,-610.09039344,0.0002993,2]
[344907746,1733867433142,-266.4,0.0002993,7]
[344907749,1733867433152,-199.8021168,0.0002993,7]
[344907752,1733867433163,-199.8,0.0002993,7]
[344907755,1733867433173,-152.38322887,0.0002993,7]
[344907758,1733867433184,-152.38322887,0.0002993,7]
[344907761,1733867433194,-152.38322887,0.0002993,7]
[344907765,1733867433206,-152.38322887,0.0002993,7]
[344907768,1733867433216,-152.38322887,0.0002993,7]
[344907771,1733867433225,-152.38322887,0.0002993,7]
[344907774,1733867433235,-38.01626606,0.0002993,7]
[344907797,1733867433357,-114.36696281,0.0002993,7]
[344907800,1733867433368,-152.38322887,0.0002993,7]
[344907803,1733867433378,-152.38322887,0.0002993,7]
[344907806,1733867433388,-152.38322887,0.0002993,7]
[344907809,1733867433399,-152.38322887,0.0002993,7]
[344907812,1733867433409,-152.38322887,0.0002993,7]
[344907815,1733867433419,-152.38322887,0.0002993,7]
[344907819,1733867433429,-152.38322887,0.0002993,7]
[344907822,1733867433440,-152.38,0.0002993,7]
[344907824,1733867433450,-171.43113247,0.0002993,7]
[344907828,1733867433461,-171.43113247,0.0002993,7]
[344907831,1733867433471,-171.43113247,0.0002993,7]
[344907834,1733867433481,-171.43113247,0.0002993,7]
[344907837,1733867433491,-171.43113247,0.0002993,7]
[344907840,1733867433502,-171.43113247,0.0002993,7]
[344907843,1733867433522,-171.43113247,0.0002993,7]
[344907846,1733867433531,-171.43113247,0.0002993,7]
[344907849,1733867433541,-171.43113247,0.0002993,7]
[344907851,1733867433551,-171.43113247,0.0002993,7]
[344907853,1733867433560,-171.43113247,0.0002993,7]
[344907855,1733867433570,-171.43113247,0.0002993,7]
[344907858,1733867433580,-171.43113247,0.0002993,7]
[344907861,1733867433590,-90.49229299,0.0002993,7]
[344907916,1733867438628,-80.93883948,0.0002993,7]
[344907917,1733867438637,-171.43113247,0.0002993,7]
[344907918,1733867438647,-171.43113247,0.0002993,7]
[344907919,1733867438656,-171.43113247,0.0002993,7]
[344907920,1733867438667,-171.43113247,0.0002993,7]
[344907921,1733867438677,-171.43113247,0.0002993,7]
[344907922,1733867438686,-171.43,0.0002993,7]
[344907923,1733867438696,-191.51,0.0002993,7]
[344907924,1733867438706,-1000.0,0.00029955,2]
[344907925,1733867438716,-500.0,0.00029989,7]
[344907926,1733867438725,-500.0,0.00029989,7]
[344907927,1733867438737,-500.0,0.00029999,7]
[344907928,1733867438747,-964.37,0.00029999,7]
[344907929,1733867438760,-1562.14,0.00029999,7]
[344907930,1733867438769,-500.0,0.00029999,7]
[344907931,1733867438779,-500.0,0.00029999,7]
[344907932,1733867438789,-2000.0,0.0003,2]
[344907933,1733867438799,-151.0,0.0003,14]
[344907934,1733867438809,-500.0,0.0003,32]
[344907935,1733867438820,-151.0,0.0003,19]
[344907936,1733867438830,-521.35,0.0003,2]
[344907937,1733867438840,-300.0,0.0003,14]
[344907938,1733867438850,-1000.0,0.0003,2]
[344907939,1733867438859,-226.16,0.0003,31]
[344907940,1733867438869,-226.16,0.0003,31]
[344907941,1733867438879,-226.16,0.0003,31]
[344907942,1733867438889,-226.16,0.0003,31]
[344907943,1733867438898,-226.16,0.0003,31]
[344907944,1733867438908,-226.16,0.0003,31]
[344907945,1733867438918,-226.16,0.0003,31]
[344907946,1733867438928,-226.16,0.0003,31]
[344907947,1733867438938,-226.16,0.0003,31]
[344907948,1733867438947,-226.16,0.0003,31]
[344907949,1733867438957,-226.16,0.0003,31]
[344907950,1733867438967,-226.16,0.0003,31]
[344907951,1733867438976,-226.16,0.0003,31]
[344907952,1733867438985,-226.16,0.0003,31]
[344907953,1733867438995,-226.16,0.0003,31]
[344907954,1733867439005,-226.16,0.0003,31]
[344907955,1733867439017,-226.16,0.0003,31]
[344907956,1733867439027,-226.16,0.0003,31]
[344907957,1733867439038,-226.16,0.0003,31]
[344907958,1733867439048,-226.16,0.0003,31]
[344907959,1733867439058,-226.16,0.0003,31]
[344907960,1733867439067,-226.16,0.0003,31]
[344907961,1733867439078,-226.16,0.0003,31]
[344907962,1733867439088,-226.16,0.0003,31]
[344907963,1733867439100,-318.7921254,0.0003,30]
[344907964,1733867439111,-153.0,0.0003,30]
[344907965,1733867439122,-213.5058504,0.0003,30]
[344907966,1733867439132,-213.5058504,0.0003,30]
[344907967,1733867439142,-393.0,0.0003,2]
[344907968,1733867439154,-439.78121412,0.00030016,7]
[344907969,1733867439164,-1000.0,0.00030016,2]
[344907970,1733867439174,-500.0,0.00030016,7]
[344907971,1733867439185,-1372.93112066,0.00030017,33]
[344907972,1733867439194,-1562.14,0.00030022,7]
[344907973,1733867439204,-1562.14,0.00030022,7]
[344907974,1733867439213,-500.0,0.00030022,7]
[344907975,1733867439223,-641.01,0.00030022,7]
[344907976,1733867439232,-964.37,0.00030023,7]
[344907977,1733867439241,-964.37,0.00030023,7]
[344907978,1733867439250,-964.37,0.00030023,7]
[344907979,1733867439263,-964.37,0.00030023,7]
[344907980,1733867439272,-964.37,0.00030023,7]
[344907981,1733867439282,-964.37,0.00030023,7]
[344907982,1733867439291,-964.37,0.00030023,7]
[344907983,1733867439300,-964.37,0.00030023,7]
[344907984,1733867439310,-964.37,0.00030023,7]
[344907985,1733867439319,-1562.14,0.00030023,7]
[344907986,1733867439328,-1562.14,0.00030023,7]
[344907987,1733867439337,-1562.14,0.00030023,7]
[344907988,1733867439346,-1562.14,0.00030023,7]
[344907989,1733867439356,-1562.14,0.00030023,7]
[344907990,1733867439366,-1562.14,0.00030023,7]
[344907991,1733867439375,-1562.14,0.00030023,7]
[344907992,1733867439385,-1562.14,0.00030023,7]
[344907993,1733867439395,-1562.14,0.00030023,7]
[344907994,1733867439405,-1562.14,0.00030023,7]
[344907995,1733867439414,-151.0,0.00030024,7]
[344907996,1733867439423,-151.0,0.00030024,7]
[344907997,1733867439433,-151.0,0.00030024,7]
[344907998,1733867439443,-153.860128,0.00030024,7]
[344907999,1733867439452,-151.0,0.00030024,7]
[344908000,1733867439462,-151.0,0.00030024,7]
[344908001,1733867439471,-152.126907,0.00030024,7]
[344908002,1733867439481,-151.0,0.00030024,7]
[344908003,1733867439491,-151.0,0.00030024,7]
[344908004,1733867439503,-151.0,0.00030024,7]
[344908005,1733867439516,-151.0,0.00030024,7]
[344908006,1733867439525,-151.0,0.00030024,7]
[344908007,1733867439534,-151.0,0.00030024,7]
[344908008,1733867439544,-151.0,0.00030024,7]
[344908009,1733867439553,-151.0,0.00030024,7]
[344908010,1733867439563,-151.0,0.00030024,7]
[344908011,1733867439572,-151.0,0.00030024,7]
[344908012,1733867439582,-151.0,0.00030024,7]
[344908013,1733867439591,-151.0,0.00030024,7]
[344908014,1733867439601,-151.0,0.00030024,7]
[344908015,1733867439611,-151.0,0.00030024,7]
[344908016,1733867439620,-151.0,0.00030024,7]
[344908017,1733867439630,-151.0,0.00030024,7]
[344908018,1733867439640,-151.0,0.00030024,7]
[344908019,1733867439650,-151.0,0.00030024,7]
[344908020,1733867439660,-151.0,0.00030024,7]
[344908021,1733867439669,-151.0,0.00030024,7]
[344908022,1733867439679,-151.0,0.00030024,7]
[344908023,1733867439689,-151.0,0.00030024,7]
[344908024,1733867439699,-151.0,0.00030024,7]
[344908025,1733867439708,-151.0,0.00030024,7]
[344908026,1733867439718,-151.0,0.00030024,7]
[344908027,1733867439727,-296.273524,0.00030024,7]
[344908028,1733867439737,-151.0,0.00030024,7]
[344908029,1733867439746,-151.0,0.00030024,7]
[344908030,1733867439756,-151.0,0.00030024,7]
[344908031,1733867439768,-151.0,0.00030024,7]
[344908032,1733867439778,-151.0,0.00030024,7]
[344908033,1733867439787,-964.37,0.00030024,7]
[344908034,1733867439797,-964.37,0.00030024,7]
[344908035,1733867439806,-964.37,0.00030024,7]
[344908036,1733867439816,-964.37,0.00030024,7]
[344908037,1733867439826,-964.37,0.00030024,7]
[344908038,1733867439836,-964.37,0.00030024,7]
[344908039,1733867439846,-964.37,0.00030024,7]
[344908040,1733867439855,-964.37,0.00030024,7]
[344908041,1733867439866,-964.37,0.00030024,7]
[344908042,1733867439876,-964.54055035,0.00030024,7]
[344908043,1733867439886,-151.0,0.00030024,7]
[344908044,1733867439895,-151.0,0.00030024,7]
[344908045,1733867439907,-151.0,0.00030024,7]
[344908046,1733867439916,-151.0,0.00030024,7]
[344908047,1733867439926,-151.0,0.00030024,7]
[344908048,1733867439935,-151.0,0.00030024,7]
[344908049,1733867439945,-151.0,0.00030024,7]
[344908050,1733867439956,-151.0,0.00030024,7]
[344908051,1733867439965,-151.0,0.00030024,7]
[344908052,1733867439975,-151.0,0.00030024,7]
[344908053,1733867439985,-151.0,0.00030024,7]
[344908054,1733867439995,-151.0,0.00030024,7]
[344908056,1733867440004,-151.0,0.00030024,7]
[344908057,1733867440015,-151.0,0.00030024,7]
[344908058,1733867440025,-151.0,0.00030024,7]
[344908059,1733867440039,-151.0,0.00030024,7]
[344908060,1733867440049,-151.0,0.00030024,7]
[344908061,1733867440059,-151.0,0.00030024,7]
[344908062,1733867440069,-151.0,0.00030024,7]
[344908063,1733867440079,-151.0,0.00030024,7]
[344908064,1733867440089,-151.0,0.00030024,7]
[344908065,1733867440099,-151.0,0.00030024,7]
[344908067,1733867440112,-151.0,0.00030024,7]
[344908068,1733867440123,-151.0,0.00030024,7]
[344908069,1733867440132,-170.92362012,0.00030024,7]
[344908070,1733867440141,-151.0,0.00030024,7]
[344908071,1733867440153,-151.0,0.00030024,7]
[344908072,1733867440164,-151.0,0.00030024,7]
[344908073,1733867440174,-151.0,0.00030024,7]
[344908074,1733867440187,-151.0,0.00030024,7]
[344908075,1733867440198,-151.0,0.00030024,7]
[344908076,1733867440207,-151.0,0.00030024,7]
[344908077,1733867440216,-151.0,0.00030024,7]
[344908078,1733867440225,-151.0,0.00030024,7]
[344908079,1733867440234,-151.0,0.00030024,7]
[344908080,1733867440244,-151.0,0.00030024,7]
[344908081,1733867440253,-151.0,0.00030024,7]
[344908082,1733867440265,-151.0,0.00030024,7]
[344908083,1733867440275,-194.182086,0.00030024,7]
[344908084,1733867440284,-151.0,0.00030024,7]
[344908085,1733867440294,-151.0,0.00030024,7]
[344908086,1733867440304,-151.0,0.00030024,7]
[344908088,1733867440313,-151.0,0.00030024,7]
[344908089,1733867440323,-322.514725,0.00030024,7]
[344908090,1733867440333,-151.0,0.00030024,7]
[344908091,1733867440342,-322.514725,0.00030024,7]
[344908092,1733867440352,-151.0,0.00030024,7]
[344908093,1733867440361,-322.514725,0.00030024,7]
[344908094,1733867440371,-322.514725,0.00030024,7]
[344908095,1733867440380,-151.0,0.00030024,7]
[344908096,1733867440389,-322.514725,0.00030024,7]
[344908097,1733867440398,-322.514725,0.00030024,7]
[344908098,1733867440407,-151.0,0.00030024,7]
[344908099,1733867440417,-322.514725,0.00030024,7]
[344908100,1733867440426,-259.888494,0.00030024,7]
[344908101,1733867440436,-322.514725,0.00030024,7]
[344908102,1733867440446,-322.514725,0.00030024,7]
[344908103,1733867440455,-322.514725,0.00030024,7]
[344908104,1733867440465,-322.514725,0.00030024,7]
[344908105,1733867440475,-322.514725,0.00030024,7]
[344908106,1733867440484,-322.514725,0.00030024,7]
[344908107,1733867440493,-322.514725,0.00030024,7]
[344908108,1733867440502,-322.514725,0.00030024,7]
[344908109,1733867440513,-322.514725,0.00030024,7]
[344908110,1733867440523,-322.514725,0.00030024,7]
[344908111,1733867440532,-322.514725,0.00030024,7]
[344908112,1733867440541,-322.514725,0.00030024,7]
[344908113,1733867440550,-322.514717,0.00030024,7]
[344908114,1733867440560,-1562.14,0.00030024,7]
[344908115,1733867440570,-1562.14,0.00030024,7]
[344908116,1733867440580,-1562.14,0.00030024,7]
[344908117,1733867440589,-1562.14,0.00030024,7]
[344908118,1733867440599,-1562.14,0.00030024,7]
[344908119,1733867440608,-1562.23,0.00030024,7]
[344908120,1733867440617,-151.0,0.00030024,7]
[344908121,1733867440626,-153.908322,0.00030024,7]
[344908122,1733867440636,-500.0,0.00030028,7]
[344908123,1733867440645,-215.39954837,0.00030029,2]
[344908124,1733867440654,-215.13578669,0.00030029,2]
[344908125,1733867440664,-559.00866442,0.00030029,2]
[344908126,1733867440673,-500.0,0.00030029,7]
[344908127,1733867440682,-500.0,0.00030029,7]
[344908128,1733867440776,-500.0,0.00030029,7]
[344908129,1733867440786,-500.0,0.00030029,7]
[344908130,1733867440796,-500.0,0.00030029,7]
[344908131,1733867440806,-500.0,0.00030029,7]
[344908132,1733867440815,-183.93317843,0.00030029,7]
[344908133,1733867440825,-500.0,0.00030029,2]
[344908134,1733867440834,-500.0,0.00030029,2]
[344908135,1733867440844,-217.83993272,0.00030029,2]
[344908136,1733867440853,-500.0,0.00030029,2]
[344908137,1733867440863,-500.0,0.00030029,2]
[344908138,1733867440872,-500.0,0.00030029,2]
[344908139,1733867440882,-500.0,0.00030029,2]
[344908140,1733867440892,-207.77642706,0.00030029,2]
[344908141,1733867440901,-500.0,0.00030029,2]
[344908142,1733867440910,-500.0,0.00030029,2]
[344908143,1733867440919,-500.0,0.00030029,2]
[344908144,1733867440929,-500.0,0.00030029,2]
[344908145,1733867440938,-197.14352919,0.00030029,2]
[344908146,1733867440947,-500.0,0.00030029,2]
[344908147,1733867440956,-491.20072151,0.00030029,2]
[344908148,1733867440966,-154.87609912,0.0003003,2]
[344908149,1733867440976,-2556.91317709,0.0003003,4]
[344908150,1733867440985,-151.0,0.0003003,7]
[344908151,1733867440995,-151.0,0.0003003,7]
[344908152,1733867441005,-151.0,0.0003003,7]
[344908153,1733867441017,-225.265406,0.0003003,7]
[344908154,1733867441026,-151.0,0.0003003,7]
[344908155,1733867441035,-151.0,0.0003003,7]
[344908156,1733867441044,-151.0,0.0003003,7]
[344908157,1733867441054,-151.0,0.0003003,7]
[344908158,1733867441063,-151.0,0.0003003,7]
[344908159,1733867441072,-151.0,0.0003003,7]
[344908160,1733867441082,-151.0,0.0003003,7]
[344908161,1733867441091,-151.0,0.0003003,7]
[344908162,1733867441100,-151.0,0.0003003,7]
[344908163,1733867441113,-151.0,0.0003003,7]
[344908164,1733867441122,-151.0,0.0003003,7]
[344908165,1733867441130,-151.0,0.0003003,7]
[344908166,1733867441141,-151.0,0.0003003,7]
[344908167,1733867441150,-151.0,0.0003003,7]
[344908168,1733867441159,-151.0,0.0003003,7]
[344908169,1733867441169,-151.0,0.0003003,7]
[344908170,1733867441178,-151.0,0.0003003,7]
[344908171,1733867441188,-151.0,0.0003003,7]
[344908172,1733867441197,-151.0,0.0003003,7]
[344908173,1733867441206,-151.0,0.0003003,7]
[344908174,1733867441215,-274.465415,0.0003003,7]
[344908175,1733867441225,-151.0,0.0003003,7]
[344908176,1733867441234,-151.0,0.0003003,7]
[344908177,1733867441243,-151.0,0.0003003,7]
[344908178,1733867441253,-151.0,0.0003003,7]
[344908179,1733867441263,-151.0,0.0003003,7]
[344908180,1733867441273,-151.0,0.0003003,7]
[344908181,1733867441282,-151.0,0.0003003,7]
[344908182,1733867441291,-247.018885,0.0003003,7]
[344908183,1733867441301,-151.0,0.0003003,7]
[344908184,1733867441311,-151.0,0.0003003,7]
[344908185,1733867441320,-151.0,0.0003003,7]
[344908186,1733867441330,-151.0,0.0003003,7]
[344908187,1733867441342,-151.0,0.0003003,7]
[344908188,1733867441351,-151.0,0.0003003,7]
[344908189,1733867441361,-151.0,0.0003003,7]
[344908190,1733867441370,-151.0,0.0003003,7]
[344908191,1733867441380,-151.0,0.0003003,7]
[344908192,1733867441390,-151.0,0.0003003,7]
[344908193,1733867441400,-151.0,0.0003003,7]
[344908194,1733867441409,-151.492079,0.0003003,7]
[344908195,1733867441419,-151.0,0.0003003,7]
[344908196,1733867441429,-151.0,0.0003003,7]
[344908197,1733867441439,-151.0,0.0003003,7]
[344908198,1733867441449,-151.0,0.0003003,7]
[344908199,1733867441459,-151.0,0.0003003,7]
[344908200,1733867441468,-151.0,0.0003003,7]
[344908201,1733867441478,-151.0,0.0003003,7]
[344908202,1733867441488,-151.0,0.0003003,7]
[344908203,1733867441497,-151.0,0.0003003,7]
[344908204,1733867441506,-151.0,0.0003003,7]
[344908205,1733867441522,-151.0,0.0003003,7]
[344908206,1733867441532,-253.731985,0.0003003,7]
[344908207,1733867441542,-151.0,0.0003003,7]
[344908208,1733867441551,-151.0,0.0003003,7]
[344908209,1733867441561,-151.0,0.0003003,7]
[344908210,1733867441570,-151.0,0.0003003,7]
[344908211,1733867441580,-151.0,0.0003003,7]
[344908212,1733867441590,-151.0,0.0003003,7]
[344908213,1733867441599,-151.0,0.0003003,7]
[344908214,1733867441609,-151.0,0.0003003,7]
[344908215,1733867441619,-151.0,0.0003003,7]
[344908216,1733867441629,-151.0,0.0003003,7]
[344908217,1733867441638,-151.0,0.0003003,7]
[344908218,1733867441649,-159.177824,0.0003003,7]
[344908219,1733867441658,-151.0,0.0003003,7]
[344908220,1733867441668,-151.0,0.0003003,7]
[344908221,1733867441677,-151.0,0.0003003,7]
[344908222,1733867441687,-151.0,0.0003003,7]
[344908223,1733867441696,-151.0,0.0003003,7]
[344908224,1733867441706,-151.0,0.0003003,7]
[344908225,1733867441715,-151.0,0.0003003,7]
[344908226,1733867441725,-151.0,0.0003003,7]
[344908227,1733867441734,-151.0,0.0003003,7]
[344908228,1733867441744,-160.685274,0.0003003,7]
[344908229,1733867441754,-501.93500341,0.0003003,11]
[344908230,1733867441765,-500.0,0.0003003,11]
[344908231,1733867441774,-169827.19223556,0.0003003,2]
[344908232,1733867441784,-661.21723178,0.0003003,2]
[344908233,1733867441793,-150.0,0.0003003,2]
[344908234,1733867441803,-532.0,0.0003003,2]
[344908235,1733867441812,-2375.0,0.0003003,2]
[344908236,1733867441821,-2165.0,0.0003003,2]
[344908237,1733867441831,-2916754.38403436,0.0003003,10]
[344908238,1733867441889,-7446.28237986,0.0003003,10]
[344908301,1733867531101,166.140385,0.00022491,5]
[344908302,1733867532225,166.140385,0.00027,20]
[344908303,1733867532530,166.140385,0.00027015,2]
[344908309,1733867690424,97718.0,0.000262,60]
[344908312,1733867742557,170.8217327,0.00013973,2]
[344908316,1733868339147,-300.0,0.00024268,2]
[344908317,1733868339169,-300.0,0.00024268,2]
[344908318,1733868339190,-495.81805445,0.00024269,2]
[344908323,1733868551157,-300.0,0.00024268,2]
[344908324,1733868551178,-300.0,0.00024268,2]
[344908325,1733868551199,-16204.54234985,0.00024269,2]
[344908326,1733868551219,-223.384097,0.00024372,2]
[344908327,1733868551238,-226.878048,0.00024627,2]
[344908328,1733868551258,-3000.0,0.00025,2]
[344908329,1733868551279,-1330.65714975,0.0002501,2]
[344908330,1733868551309,-1669.34285025,0.0002501,2]
[344908331,1733868551330,-5978.352035,0.0002502,2]
[344908332,1733868551364,-223.384097,0.00025274,2]
[344908333,1733868551390,-169.829112,0.00025966,2]
[344908334,1733868551413,-431.45407243,0.00025999,2]
[344908335,1733868551434,-92809.30335085,0.00026,30]
[344908336,1733868551459,-983.914974,0.00026076,2]
[344908337,1733868551481,-223.384097,0.00026176,2]
[344908338,1733868551504,-420.0,0.0002631,2]
[344908339,1733868551527,-660.0,0.00026384,2]
[344908340,1733868551548,-983.91497398,0.00026628,2]
[344908341,1733868551568,-420.0,0.00026695,2]
[344908343,1733868556076,185.06378323,0.00024272,2]
[344908344,1733868559166,-223.384097,0.00027078,2]
[344908345,1733868559190,-247.04728129,0.00027086,2]
[344908359,1733868631811,-433.1,0.0002718,2]
[344908361,1733868631824,-550.81497398,0.0002718,2]
[344908363,1733868631833,-222.25571021,0.00027393,2]
[344908365,1733868631845,-77.74428979,0.00027393,2]
[344908367,1733868631854,-300.0,0.00027393,2]
[344908369,1733868631864,-500.0,0.00027394,2]
[344908371,1733868631874,-264.39336501,0.00027394,2]
[344908373,1733868631885,-235.60663499,0.00027394,2]
[344908375,1733868631894,-96.37036501,0.00027394,2]
[344908379,1733868631918,-500.0,0.00027394,2]
[344908381,1733868631927,-181.84878689,0.00027394,2]
[344908383,1733868631936,-500.0,0.00027394,2]
[344908384,1733868631949,-500.0,0.00027394,2]
[344908386,1733868631958,-500.0,0.00027394,2]
[344908389,1733868631967,-500.0,0.00027394,2]
[344908392,1733868631977,-500.0,0.00027394,2]
[344908395,1733868631986,-500.0,0.00027394,2]
[344908398,1733868631995,-500.0,0.00027394,2]
[344908401,1733868632007,-500.0,0.00027394,2]
[344908404,1733868632016,-500.0,0.00027394,2]
[344908407,1733868632025,-500.0,0.00027394,2]
[344908410,1733868632035,-500.0,0.00027394,2]
[344908413,1733868632045,-500.0,0.00027394,2]
[344908416,1733868632055,-491.0821486,0.00027394,2]
[344908420,1733868632067,-8.9178514,0.00027394,2]
[344908423,1733868632076,-259.2917016,0.00027394,2]
[344908426,1733868632087,-240.7082984,0.00027394,2]
[344908429,1733868632096,-258.8551796,0.00027394,2]
[344908432,1733868632107,-241.1448204,0.00027394,2]
[344908435,1733868632116,-500.0,0.00027394,2]
[344908437,1733868632125,-500.0,0.00027394,2]
[344908439,1733868632135,-554.77589842,0.00027394,2]
[344908441,1733868632144,-500.0,0.00027394,2]
[344908443,1733868632154,-500.0,0.00027394,2]
[344908445,1733868632164,-500.0,0.00027394,2]
[344908447,1733868632173,-500.0,0.00027394,2]
[344908449,1733868632183,-500.0,0.00027394,2]
[344908451,1733868632195,-500.0,0.00027394,2]
[344908453,1733868632204,-500.0,0.00027394,2]
[344908455,1733868632214,-650.0,0.00027394,2]
[344908457,1733868632224,-19224.3211183,0.00027397,2]
[344908459,1733868632234,-500.0,0.00027714,5]
[344908461,1733868632243,-233.20770029,0.00027714,5]
[344908463,1733868632252,-983.91497398,0.00027732,2]
[344908465,1733868632262,-155.01096578,0.00027785,2]
[344908468,1733868632272,-169.829112,0.00027907,2]
[344908470,1733868632282,-223.384097,0.00027979,2]
[344908471,1733868632291,-171.0211306,0.00028262,5]
[344908472,1733868632300,-983.91497398,0.00028285,2]
[344908473,1733868632310,-161.75807202,0.00028424,2]